Cogmind - Beta 15 @@@ ROGUE MODE // 2025.06.08 @ 19:49:12 Player: Demo Result: Destroyed by H-77 Assassin with Coil Gun Performance ------------- Evolutions (7) 3500 Regions Visited (24) 4800 Robots Destroyed (406) 2030 Value Destroyed (21272) 21272 Prototype IDs (98) 1960 Alien Tech Used (9) 1800 Bonus (18797) 18797 TOTAL SCORE: 54159 Bonus ------- Triggered High Security 1000 High Alert Combat Kills 6914 Follower Combat Kills 2608 Aligned with FarCom 300 Met Data Miner 300 Met Imprinter 300 Destroyed Z-Imprinter 1000 Triggered Deep Caves Wall 500 Exposed GOLEM Chamber 500 Built Enhanced Grunts 300 A7 Reached Mainframe 300 Met R17 at Cetus 500 Met R17 at Research 2000 Scanned by Researcher 500 Met Sigix 2000 Friendly Fire -225 Cogmind --------- Core Integrity 0/1300 Matter 290/300 Energy 21/100 System Corruption 3% Temperature Cool (0) Movement Core (50) Location -3/Section 7 Parts ------- > --- POWER (2) -------- (None) > --- PROPULSION (3) --- Xenon Bombardment Thruster > --- UTILITY (15) ----- (None) > --- WEAPON (2) ------- (None) > --- INVENTORY (5) ---- Myomer Leg Core Cannon Sigix Containment Pod Peak State ------------ > --- POWER ------------ Light Antimatter Reactor Particle Reactor > --- PROPULSION ------- Enhanced Biometal Leg Enhanced Biometal Leg High-density Centrium Leg > --- UTILITY ---------- Advanced Cooling System Experimental Coolant Injector Lightpack 2.0 Assembled Biocell Array Advanced Matter Compressor Experimental Signal Interpreter Surveybot 24 Chip Assembled Combat Suite Experimental Targeting Computer Centrium Medium Armor Plating Phase Armor Advanced Force Field > --- WEAPON ----------- Core Cannon > --- INVENTORY -------- Light Particle Reactor Compact Particle Reactor Myomer Leg Experimental Heat Sink Advanced Cooling System Advanced Coolant Injector Advanced Sensor Array Advanced Sensor Array Advanced Signal Interpreter Nanoactuators Layered Heavy Armor Plating Advanced Corruption Screen Advanced System Restoration Module Advanced Recalibrator Dimensional Node Initializer Dimensional Node Initializer Terrabomb Gamma Rifle Backup Laser III Matter Neutralizer Heavy Machine Gun Mass Driver Hypercooled Linear Accelerator Hypercooled Linear Accelerator Advanced Remote Datajack Sigix Containment Pod [Rating: 230] Favorites ----------- Power Angular Momentum Engine Engine Angular Momentum Engine Power Core Micro Nuclear Core Reactor Zionite Light DM Reactor Propulsion Assembled Alloy Leg Treads Advanced Medium Treads Leg Assembled Alloy Leg Wheel Armored Huge Wheel Hover Unit Zionite Glidesys II Flight Unit Xenon Bombardment Thruster Utility Huge Storage Unit Device Advanced Sensor Array Storage Huge Storage Unit Processor Improved Signal Interpreter Hackware Hacking Suite Protection Improved Light Armor Plating Artifact Phase Armor Weapon Assembled Focal Cannon Energy Gun Cooled Pulse Rifle Energy Cannon Assembled Focal Cannon Ballistic Gun AWS/Gauss Ballistic Cannon Advanced Assault Cannon Launcher Mini Grenade Launcher Special Weapon Improved Plasma Cutter Impact Weapon Great Maul Special Melee Weapon Improved Datajack Build | -11 -10 -10 -10 -9 -8 -7 -7 -7 -6 -6 -6 -6 -6 -6 -5 -5 -5 -5 -5 -4 -4 -3 -3 -3 ------- Run | Yrd Mat Min Exi Min Mat Fac Low Dat Pro Fac Low Low Zio Dee Pro Fac Ext Cet Arc Fac Arm Res Qua Sec Slots Evolved 14 | . . . . . 4 2 . . . 2 . . . . . 2 . . . 2 . 2 . . Power 1 | . . . . . . . . . . . . . . . . . . . . 1 . . . . Propulsion 1 | . . . . . . . . . . . . . . . . . . . . . . 1 . . Utility 12 | . . . . . 4 2 . . . 2 . . . . . 2 . . . 1 . 1 . . Weapon . | . . . . . . . . . . . . . . . . . . . . . . . . . Parts Attached 308 | 7 15 3 1 6 23 40 1 . 8 11 . 1 5 41 . 10 8 6 . 13 37 20 44 8 Power 32 | 1 2 . . . 3 5 . . . 1 . . . 2 . 1 2 1 . . 7 . 7 . Engine 9 | 1 2 . . . 2 3 . . . 1 . . . . . . . . . . . . . . Core 6 | . . . . . 1 2 . . . . . . . . . . 2 . . . . . 1 . Reactor 17 | . . . . . . . . . . . . . . 2 . 1 . 1 . . 7 . 6 . Propulsion 32 | 2 4 2 . 1 3 2 . . . 1 . . . 5 . 1 . . . . 2 2 6 1 Treads 1 | . . . . . . . . . . . . . . . . . . . . . . . 1 . Leg 10 | . . . . . . . . . . . . . . . . 1 . . . . 2 2 5 . Wheel 16 | 2 4 2 . 1 3 2 . . . 1 . . . 1 . . . . . . . . . . Hover 4 | . . . . . . . . . . . . . . 4 . . . . . . . . . . Flight 1 | . . . . . . . . . . . . . . . . . . . . . . . . 1 Utility 176 | 2 2 1 1 1 10 21 . . 6 9 . 1 3 23 . 7 6 5 . 13 23 16 21 5 Device 85 | 1 . 1 . 1 1 10 . . 2 5 . . 3 8 . 5 1 1 . 7 12 13 11 3 Storage 21 | 1 1 . . . . 1 . . 1 . . . . 4 . 1 . 1 . 2 3 2 3 1 Processor 24 | . . . . . 3 3 . . 1 3 . 1 . 1 . 1 . . . 3 3 . 4 1 Hackware 7 | . . . . . 1 4 . . . . . . . . . . . . . . 2 . . . Protection 38 | . 1 . 1 . 5 3 . . 2 1 . . . 10 . . 5 3 . 1 3 1 2 . Artifact 1 | . . . . . . . . . . . . . . . . . . . . . . . 1 . Weapon 68 | 2 7 . . 4 7 12 1 . 2 . . . 2 11 . 1 . . . . 5 2 10 2 Energy Gun 20 | 1 1 . . . 2 3 1 . . . . . 1 9 . . . . . . 1 . . 1 Energy Cannon 5 | . . . . 1 . 1 . . 1 . . . 1 . . . . . . . . . 1 . Ballistic Gun 20 | 1 4 . . . 1 4 . . 1 . . . . 1 . . . . . . 1 2 4 1 Ballistic Cannon 9 | . . . . 1 1 2 . . . . . . . . . . . . . . . . 5 . Launcher 10 | . 2 . . 1 3 1 . . . . . . . . . 1 . . . . 2 . . . Special Weapon 1 | . . . . . . . . . . . . . . . . . . . . . 1 . . . Impact Weapon 1 | . . . . . . . . . . . . . . 1 . . . . . . . . . . Slashing Weapon . | . . . . . . . . . . . . . . . . . . . . . . . . . Piercing Weapon . | . . . . . . . . . . . . . . . . . . . . . . . . . Special Melee Weapon 2 | . . . . 1 . 1 . . . . . . . . . . . . . . . . . . Unidentified Prototypes 52 | . . 1 . . 2 3 . . 1 . 1 . 3 13 . 1 . 3 . 1 1 3 18 1 Corrupted Parts 3 | . . . . . 1 . . . . . . . . . . . . 1 . . 1 . . . System Corruption 13 | . . . . . 1 . . . . . . . . . . . . 3 . . 9 . . . Parts Lost 125 | . 3 2 . 2 3 5 . . 1 . 1 . . 6 . 6 2 . . 7 37 7 30 13 Power 20 | . 1 . . . 1 1 . . . . . . . . . 1 1 . . . 7 1 6 1 Propulsion 15 | . 1 1 . . . . . . . . . . . 2 . . . . . 1 2 1 5 2 Utility 70 | . . . . . 2 2 . . 1 . 1 . . 4 . 3 1 . . 6 22 5 15 8 Weapon 20 | . 1 1 . 2 . 2 . . . . . . . . . 2 . . . . 6 . 4 2 Highest Loss Streak 12 | . 1 1 . 1 3 1 . . 1 . 1 . . 4 . 3 1 . . 3 7 3 7 12 To Critical Strikes 1 | . . . . . . . . . . . . . . . . . . . . 1 . . . . Average Backups 16 | 4 13 24 22 20 20 20 20 21 20 19 19 18 19 13 17 17 17 18 18 15 14 2 20 2 Power . | . . 1 . . . . 1 1 1 1 1 1 1 . 1 . . 1 1 1 . . 2 . Propulsion 2 | 2 3 3 4 2 1 3 4 4 3 2 2 2 2 1 2 2 2 2 2 1 1 . 1 . Utility 8 | 1 4 7 5 6 9 9 9 9 8 9 10 9 10 7 12 11 12 12 12 9 7 2 7 1 Weapon 4 | . 3 11 10 11 8 6 5 6 5 5 5 5 5 3 2 2 2 2 2 2 3 . 5 . Tool/Special . | . . . . . . . . . . . . . . . . . . . . . . . . . Unused Backups 118 | 2 22 1 5 4 6 3 . . 1 2 . . 3 19 . 2 2 1 . 1 12 . 29 3 Power 13 | . . . 1 . . . . . . 1 . . 1 4 . . 2 1 . 1 1 . 1 . Propulsion 24 | 2 10 . . 1 1 . . . 1 . . . . 2 . . . . . . 6 . . 1 Utility 43 | . 9 1 2 1 1 . . . . 1 . . 1 12 . 2 . . . . 3 . 8 2 Weapon 31 | . 3 . 2 2 4 2 . . . . . . 1 1 . . . . . . 2 . 14 . Tool/Special 7 | . . . . . . 1 . . . . . . . . . . . . . . . . 6 . Average Slot Usage (%) 88 | . 93 93 99 99 96 90 84 76 84 91 91 93 90 81 93 93 93 93 94 89 84 77 84 78 Engine 3 | . 8 14 14 14 3 4 . . . 1 6 6 6 3 . . . . . . . . . . Core 1 | . . . . . 5 2 7 7 7 4 . . . . . . 2 3 . . . . . . Reactor 2 | . . . . . . . . . . . . . . 2 6 5 2 1 5 4 7 3 5 3 Leg 4 | . . . . . . . . . . . . . . 1 12 11 11 11 11 10 9 12 11 12 Wheel 6 | . 27 27 28 28 18 7 7 7 7 6 6 6 6 4 . . . . . . . . . . Device 20 | . 3 . . . 6 6 23 23 21 22 19 25 29 18 31 32 30 27 27 27 27 28 23 23 Storage 8 | . 14 14 14 14 9 7 7 7 7 6 6 6 6 6 12 11 11 11 11 10 15 7 14 4 Processor 10 | . . . . . 11 7 7 7 7 14 12 12 12 15 12 11 11 11 11 14 8 9 13 13 Hackware 3 | . . . . . 1 32 . . . . . . . . . . . . . . . . . . Protection 14 | . 10 14 13 14 22 4 23 23 23 21 25 25 17 18 6 10 12 15 16 12 7 7 3 8 Energy Gun 2 | . 10 6 . . 6 4 6 . 4 5 5 4 6 2 . . . . . . 1 . . 1 Energy Cannon 2 | . . . . . . . . . . . . . . . 6 8 11 11 11 9 6 6 1 2 Ballistic Gun 2 | . 17 5 14 19 8 6 . . 1 . . . . 2 . . . . . . . 1 1 1 Ballistic Cannon 1 | . . . . . . 1 . . . 5 2 . 6 1 . . . . . . . . 5 . Launcher 1 | . . 9 14 7 2 . . . . . 4 6 . 1 6 2 . . . . . . . . Peak Build Rating 230 | 8 12 19 17 23 48 58 61 61 64 67 68 73 86 133 131 157 150 158 158 176 176 194 230 184 Average Rating 95 | 6 8 10 14 18 38 54 60 46 61 62 64 70 80 81 131 149 144 148 158 168 159 155 187 162 On Entrance 82 | . 8 11 12 17 19 47 54 61 61 63 63 68 73 77 131 131 150 142 158 158 164 52 180 168 Naked Turns . | . . . . . . . . . . . . . . . . . . . . . . . . . Heaviest Build 213 | 15 91 92 92 96 108 118 116 116 119 128 132 137 158 158 122 140 150 157 156 213 150 102 121 94 Greatest Support 100 | 26 26 20 20 20 24 28 28 28 28 28 28 28 28 80 80 80 80 80 80 80 80 100 100 92 Greatest Overweight (x) 10 | 1 4 4 4 4 10 4 4 4 4 4 4 4 5 8 1 2 2 2 2 3 4 1 1 1 Average Overweight (x) 2 | . 1 4 4 4 4 3 4 3 3 4 4 4 4 2 1 1 1 1 1 1 1 . . . Largest Inventory Capacity 40 | 8 25 25 25 25 25 25 25 25 25 25 25 25 25 25 25 25 25 25 25 25 20 40 40 15 Average Capacity 22 | 7 15 25 25 25 25 25 25 25 25 25 25 25 25 20 25 25 25 25 25 21 19 5 38 8 Most Carried 33 | 8 25 25 25 25 25 25 25 25 25 25 25 25 25 25 25 25 25 25 25 25 20 5 33 9 Average Carried 21 | 4 13 24 24 24 24 24 24 25 24 24 24 23 24 16 25 24 24 25 25 21 18 4 23 4 Final Capacity 25 | 8 25 25 25 25 25 25 25 25 25 25 25 25 25 25 25 25 25 25 25 20 5 5 5 5 Final Carried 25 | 8 25 24 25 24 25 25 25 25 25 25 23 25 25 25 25 25 25 25 25 20 5 5 5 5 Class Distribution -------------------- 22% | Golem 20% | Trapper-Mutant 17% | Mutant 11% | Trapper-Skirmisher 6% | Skirmisher 6% | Commander-Golem 5% | Hacker-Mutant 4% | Hauler-Mutant Dominant Class ---------------- Mutant | -10/Materials Mutant | -10/Mines Mutant | -10/Exiles Mutant | -9/Mines Mutant | -8/Materials Hacker-Mutant | -7/Factory Trapper-Mutant | -7/Lower Caves Trapper-Mutant | -7/Data Miner Trapper-Mutant | -6/Proximity Caves Trapper-Skirmisher | -6/Factory Trapper-Skirmisher | -6/Lower Caves Trapper-Skirmisher | -6/Lower Caves Trapper-Skirmisher | -6/Zion Trapper-Mutant | -6/Deep Caves Golem | -5/Proximity Caves Golem | -5/Factory Commander-Golem | -5/Extension Commander-Golem | -5/Cetus Commander-Golem | -5/Archives Golem | -4/Factory Golem | -4/Armory Golem | -3/Research Hauler-Mutant | -3/Quarantine Mutant | -3/Section 7 Resources | -11 -10 -10 -10 -9 -8 -7 -7 -7 -6 -6 -6 -6 -6 -6 -5 -5 -5 -5 -5 -4 -4 -3 -3 -3 ----------- Run | Yrd Mat Min Exi Min Mat Fac Low Dat Pro Fac Low Low Zio Dee Pro Fac Ext Cet Arc Fac Arm Res Qua Sec Matter Collected 12350 | 407 962 222 . 165 618 1949 253 . 341 636 533 345 158 1788 26 323 242 179 8 462 1063 388 1032 250 Remotely . | . . . . . . . . . . . . . . . . . . . . . . . . . Salvage Created 20647 | 233 783 181 . 195 799 1848 219 . 503 322 241 56 . 1173 35 1981 643 131 . 3753 5617 260 866 808 Parts 889 | 14 43 5 . 14 43 100 11 . 15 12 17 3 . 43 2 86 25 4 . 160 223 8 43 18 Haulers Intercepted 9 | . 2 . . . 2 . . . . . . . . . . . . . . 2 . 1 . 2 Recyclers Shooed 4 | 1 . 1 . . 1 . . . . . . . . . . . 1 . . . . . . . Parts Field Recycled . | . . . . . . . . . . . . . . . . . . . . . . . . . Retrieved Matter . | . . . . . . . . . . . . . . . . . . . . . . . . . Parts Self-Destructed 80 | . . . . . . . 11 . 31 . 13 20 1 . 4 . . . . . . . . . Prevented 4 | . . . . . . . . . 1 . . . . . 3 . . . . . . . . . Kills | -11 -10 -10 -10 -9 -8 -7 -7 -7 -6 -6 -6 -6 -6 -6 -5 -5 -5 -5 -5 -4 -4 -3 -3 -3 ------- Run | Yrd Mat Min Exi Min Mat Fac Low Dat Pro Fac Low Low Zio Dee Pro Fac Ext Cet Arc Fac Arm Res Qua Sec Combat Hostiles Destroyed 364 | . 16 10 . 7 16 42 5 . 10 4 13 1 . 45 1 31 9 2 . 49 76 2 21 4 Melee 1 | . . . . . . . . . . . . . . . . . . . . . 1 . . . Guns 92 | . 10 . . . 9 23 5 . 7 . 3 . . 14 . . . . . . 11 2 6 2 Cannons 147 | . . . . 1 . 10 . . . 2 . 1 . 1 . 23 9 2 . 44 37 . 15 2 AOE 112 | . 6 10 . 6 7 8 . . 3 2 10 . . 30 1 8 . . . 5 16 . . . Classes Destroyed 28 | 3 4 1 . 1 3 3 . . 1 . . . . 3 . 1 1 . . 3 2 . 1 1 Worker 14 | 2 2 . . . . 6 . . . 1 . . . . . 2 . . . 1 . . . . Builder 9 | . 1 . . . 1 1 . . . . . . . . . 1 . . . 3 . . . 2 Tunneler 9 | 5 1 . . 1 . . . . . . . . . . . . . . . 1 . 1 . . Hauler 9 | . 2 . . . 2 . . . . . . . . . . . . . . 2 . 1 . 2 Recycler 11 | 1 . 1 . 1 . 1 . . . 1 . . . . . 2 . . . 2 . . . 2 Minesweeper 1 | . . . . . . . . . 1 . . . . . . . . . . . . . . . Mechanic 6 | . . . . . . . . . . . . . . . . . . . . 3 3 . . . Operator 5 | . . . . . 2 . . . . . . . . . . . . . . 1 . . 1 1 Watcher 14 | . 2 . . . . 4 . . . 1 . . . . . 1 2 . . 2 1 . 1 . Swarmer 34 | . . . . 6 . 6 . . . . 11 . . . . 2 . . . 1 5 . 3 . Saboteur 6 | . . . . . . . . . . . . . . . . . . . . . 6 . . . Grunt 135 | . 16 2 . 2 13 22 4 . 4 2 1 1 . . . 15 5 . . 15 31 . 2 . Brawler 8 | . . . . . . 1 . . 3 . . . . . . . . . . 4 . . . . Duelist 12 | . . . . . . 1 . . 2 . . . . . . . 1 . . . 8 . . . Protector 2 | . . . . . . . . . . . . . . . . . . . . 1 1 . . . Researcher 3 | . . . . . . . . . . . . . . . . . . . . . . . . 3 Sentry 25 | . . . . . 2 1 . . 1 1 1 . . . . 2 2 . . 8 5 . 1 1 Demolisher 2 | . . . . . . . . . . . . . . . . . . . . 1 1 . . . Specialist 7 | . . . . . . . . . . . . . . . . 2 . . . . 5 . . . Hunter 20 | . . . . . 1 . . . . . . . . . 1 . . . . 7 4 2 2 3 Programmer 47 | . . . . . . 11 1 . . 1 . . . . . 10 . . . 12 9 . 3 . Heavy 1 | . . . . . . . . . . . . . . . . . . . . . 1 . . . Behemoth 2 | . . . . . . . . . . . . . . . . . 1 . . . 1 . . . Cetus Guard 2 | . . . . . . . . . . . . . . . . . . 2 . . . . . . Quarantine Guard 7 | . . . . . . . . . . . . . . . . . . . . . . . 7 . Lightning 2 | . . . . . . . . . . . . . . . . . . . . . . . 2 . Alpha 7 1 | . . . . . . . . . . . . . . . . . . . . . . . 1 . Z-Technician 1 | . . . . . . . . . . . . . . 1 . . . . . . . . . . Z-Light 9 | . . . . . . . . . . . . . . 9 . . . . . . . . . . Assembler 2 | . . . . . . . . . . . . . . 2 . . . . . . . . . . Assembled 41 | . . 8 . . . . . . . . . . . 33 . . . . . . . . . . Golem 2 | . . . . . . . . . . . . . . 2 . . . . . . . . . . Best Kill Streak 32 | 3 4 3 . 4 4 4 4 . 4 2 3 1 . 32 1 5 2 1 . 6 10 1 4 8 Combat Bots Only 30 | . 3 3 . 4 3 4 4 . 4 2 3 1 . 30 1 4 2 1 . 4 10 1 4 1 Max Kills in Single Turn 8 | 1 2 2 . 4 2 3 1 . 2 2 2 1 . 8 1 3 1 1 . 4 3 1 1 4 Gunslinging . | . . . . . . . . . . . . . . . . . . . . . . . . . Exploded 8 | . 2 2 . 3 2 3 . . 1 2 2 . . 8 1 3 . . . 2 3 . . . Melee 1 | . . . . . . . . . . . . . . . . . . . . . 1 . . . Uniques/NPCs Destroyed 1 | . . . . . . . . . . . . . . 1 . . . . . . . . . . Z-Imprinter (-6/Deep Caves) Combat | -11 -10 -10 -10 -9 -8 -7 -7 -7 -6 -6 -6 -6 -6 -6 -5 -5 -5 -5 -5 -4 -4 -3 -3 -3 -------- Run | Yrd Mat Min Exi Min Mat Fac Low Dat Pro Fac Low Low Zio Dee Pro Fac Ext Cet Arc Fac Arm Res Qua Sec Hostile Shots Fired 2566 | . 72 7 . 5 58 191 20 . 48 25 28 12 . 112 6 176 90 3 7 283 734 144 436 109 Missed 943 | . 20 4 . 1 21 44 5 . 21 12 9 6 . 53 2 48 36 2 4 104 280 54 169 48 Hits 1623 | . 52 3 . 4 37 147 15 . 27 13 19 6 . 59 4 128 54 1 3 179 454 90 267 61 Melee 19 | . . . . . . 6 . . . . . . . . . . . . . . 13 . . . Projectile 1604 | . 52 3 . 4 37 141 15 . 27 13 19 6 . 59 4 128 54 1 3 179 441 90 267 61 AOE 9 | . . . . . . . . . . . . . . . . . . . . 7 2 . . . Critical Strikes 86 | . . . . . 3 5 2 . . . . . . . . 4 5 . . 18 28 6 14 1 Actively Blocked 8 | . . . . . . . . . . . . . . . . . . . . . 8 . . . Part Disruptions 6 | . . . . . . . . . . . . . . 2 . . . . . . 3 . 1 . Actively Blocked 1 | . . . . . . . . . . . . . . 1 . . . . . . . . . . Damage Taken 30364 | . 612 94 . 126 708 2425 240 . 441 189 285 112 . 1403 52 1673 993 55 59 3158 7768 1618 7178 1175 Core 3565 | . 115 14 . 26 69 617 16 . 38 19 14 . . 104 . 116 171 . . 131 998 232 682 203 Absorbed by Shields 1283 | . . . . . . . . . . . . . . . . . 213 11 . 360 584 . 115 . Redirected to Shielding 268 | . 33 15 . 4 6 43 8 . 42 . . . . 117 . . . . . . . . . . Ignored by Resistances 3880 | . . . . . 44 . . . . . . . . . 11 546 238 14 12 961 1408 25 621 . Regen/Repaired (Parts) 243 | . . . . . . 231 . . . . . . . . . . . . . . . . 12 . Core Remaining (%) 54 | 100 . . . 38 87 . . . 4 . . . . . 83 . . . 71 . 1 . . . Volleys Fired 1351 | 30 79 14 . 9 59 147 3 . 15 33 36 8 . 57 2 104 61 18 6 174 284 46 140 26 Largest 2 | 2 2 1 . 2 2 2 2 . 2 2 2 2 . 2 2 2 2 2 2 2 2 2 2 2 Hottest 300 | 70 70 30 . 53 78 120 100 . 69 100 63 60 . 150 61 50 50 50 50 50 119 50 300 300 Shots Fired 2106 | 60 148 14 . 11 92 264 26 . 76 45 44 12 . 130 3 120 93 26 13 281 332 53 225 38 Gun 882 | 60 140 . . 4 69 185 23 . 61 14 14 4 . 100 . . . . . . 91 29 57 31 Cannon 1072 | . . . . 1 1 71 3 . 7 27 9 4 . 8 1 110 93 26 13 281 218 24 168 7 Launcher 152 | . 8 14 . 6 22 8 . . 8 4 21 4 . 22 2 10 . . . . 23 . . . Special . | . . . . . . . . . . . . . . . . . . . . . . . . . Kinetic 766 | 30 99 . . 5 49 188 3 . 28 27 9 4 . 72 . . . . . . 54 29 158 11 Thermal 1106 | 30 14 . . . . 54 23 . 40 14 14 4 . 24 1 110 93 26 13 281 247 24 67 27 Explosive 129 | . 8 14 . 6 22 8 . . 8 4 21 4 . 22 2 10 . . . . . . . . Electromagnetic 85 | . 27 . . . 21 14 . . . . . . . . . . . . . . 23 . . . Phasic 20 | . . . . . . . . . . . . . . 12 . . . . . . 8 . . . Robot Hit Streak 38 | 13 10 6 . 3 11 17 6 . 12 13 8 10 . 36 1 38 22 10 22 28 37 8 22 14 Robot Miss Streak 7 | 5 4 1 . 1 3 4 2 . 2 3 4 3 . 3 1 1 3 1 1 5 7 4 2 2 Penetration Max 2 | . . . . . . 1 . . . . . . . . . . . . . . 2 . . 2 Secondary Targets 5 | . 1 . . . . 1 . . . . . . . . . . . . . . . . 3 . Max Gunslinging Chain 1 | . 1 . . . . 1 . . . . . . . . . . . . . . . . 1 . Capacitor 160 | . . . . . . . . . . . . . . . . . . . . . 160 . . . Autonomous 181 | . . . . . . . 21 . 52 . . . . 64 . . . . . . 44 . . . Shots Hit Robots 1400 | 34 95 6 . 5 57 175 18 . 52 23 18 4 . 86 1 86 72 18 12 174 240 33 164 27 Core Hits 946 | 9 43 16 . 16 52 102 8 . 26 13 20 3 . 117 1 66 25 7 3 97 217 14 71 20 Critical Kills 14 | . 1 . . . . 1 . . 1 . . . . 1 . . . . . . 1 . 2 7 Critical Parts Destroyed 11 | . . . . . . 1 . . . . . . . 1 . . . . . . 2 . 3 4 Critical Strikes 47 | 1 1 . . . . 6 . . 2 1 2 . . 3 . . . . . . 3 . 17 11 Burn 7 | 1 . . . . . 2 . . . 1 2 . . 1 . . . . . . . . . . Destroy 27 | . 1 . . . . 2 . . 1 . . . . 2 . . . . . . 3 . 7 11 Blast 13 | . . . . . . 2 . . 1 . . . . . . . . . . . . . 10 . Melee Attacks 3 | . . . . . . 2 . . . . . . . 1 . . . . . . . . . . Impact . | . . . . . . . . . . . . . . . . . . . . . . . . . Slashing . | . . . . . . . . . . . . . . . . . . . . . . . . . Piercing . | . . . . . . . . . . . . . . . . . . . . . . . . . Sneak Attacks 3 | . . . . . . 2 . . . . . . . 1 . . . . . . . . . . Combat Hostiles . | . . . . . . . . . . . . . . . . . . . . . . . . . Follow-up Attacks . | . . . . . . . . . . . . . . . . . . . . . . . . . Damage Inflicted 63840 | 423 1574 514 . 505 1907 5174 535 . 1911 879 1152 104 . 4633 67 5236 3430 830 554 10647 13844 946 6300 2675 Guns 13583 | 423 939 . . 50 899 2977 504 . 1386 276 153 18 . 2020 . . . . . . 2327 319 783 509 Cannons 34189 | . . . . 15 . 1083 31 . 133 272 59 86 . 164 . 3876 3430 830 554 8524 7330 627 5375 1800 Explosions 15801 | . 635 514 . 440 1008 1114 . . 392 331 940 . . 2370 67 1301 . . . 2048 4187 . 88 366 Melee . | . . . . . . . . . . . . . . . . . . . . . . . . . Ramming 267 | . . . . . . . . . . . . . . 79 . 59 . . . 75 . . 54 . Kinetic 12387 | 187 565 . . 65 588 2762 31 . 748 272 59 86 . 1769 . . . . . . 1224 319 3593 119 Thermal 37559 | 236 214 . . . 77 1053 504 . 771 276 153 18 . 415 . 4060 3430 830 554 10572 9014 627 2565 2190 Explosive 8860 | . 544 514 . 440 931 986 . . 392 331 940 . . 2370 67 891 . . . . . . 88 366 Electromagnetic 4536 | . 251 . . . 311 373 . . . . . . . . . 226 . . . . 3375 . . . Impact . | . . . . . . . . . . . . . . . . . . . . . . . . . Slashing . | . . . . . . . . . . . . . . . . . . . . . . . . . Piercing . | . . . . . . . . . . . . . . . . . . . . . . . . . Phasic 231 | . . . . . . . . . . . . . . . . . . . . . 231 . . . Highest Corruption 33 | . . . . . 2 13 13 13 13 . . . . 1 1 2 2 5 5 4 33 1 4 3 Average Corruption 5 | . . . . . 1 9 13 13 13 . . . . 1 1 1 2 2 5 3 9 1 3 3 Corruption Purged 5 | . . . . . . . . . . . . . . . . . . . . . . 1 4 . Corruption Blocked . | . . . . . . . . . . . . . . . . . . . . . . . . . Effects 427 | . . . . . 10 79 18 5 56 . . . . 21 11 14 26 10 5 51 82 1 31 7 Message Errors 92 | . . . . . 1 16 4 2 13 . . . . 5 5 1 5 1 . 17 13 . 9 . Matter Fused 91 | . . . . . 1 23 4 1 13 . . . . 5 . 3 5 4 . 9 18 . 4 1 Heat Flow Errors 55 | . . . . . 3 7 . 2 9 . . . . 2 . 3 4 1 2 4 14 1 2 1 Energy Discharges 62 | . . . . . . 13 2 . 9 . . . . 1 1 2 6 2 1 8 13 . 3 1 Parts Rejected 2 | . . . . . . . . . . . . . . . . . . . . 1 1 . . . Parts Fused 5 | . . . . . . 2 . . . . . . . 1 . 1 1 . . . . . . . Data Loss (minor) 54 | . . . . . . 13 3 . 7 . . . . 3 3 3 3 1 . 3 7 . 7 1 Data Loss (major) 24 | . . . . . 2 2 3 . 3 . . . . 1 2 1 1 1 1 2 1 . 2 2 Misfires 16 | . . . . . 3 1 . . 1 . . . . 2 . . . . 1 4 1 . 2 1 Alerts 10 | . . . . . . 2 . . 1 . . . . 1 . . . . . 2 3 . 1 . Misdirections 6 | . . . . . . . 1 . . . . . . . . . . . . . 5 . . . Weapon Failures 10 | . . . . . . . 1 . . . . . . . . . 1 . . 1 6 . 1 . Overload Shots 14 | . . . . . . 10 2 . . 2 . . . . . . . . . . . . . . Overflow Damage 1936 | . 20 . . 8 25 176 . . 62 8 72 . . 74 . 195 84 . 5 550 262 45 118 232 Projectiles 1275 | . . . . . . 17 . . 36 8 . . . . . 193 84 . 5 356 216 45 85 230 Explosions 647 | . 20 . . 8 25 159 . . 26 . 72 . . 60 . 2 . . . 194 46 . 33 2 Melee 14 | . . . . . . . . . . . . . . 14 . . . . . . . . . . Knockbacks 20 | . . . . . . 7 1 . 1 2 2 . . 3 . 1 . . . . . . 3 . Impact 1 | . . . . . . . . . . . . . . . . 1 . . . . . . . . Kinetic 19 | . . . . . . 7 1 . 1 2 2 . . 3 . . . . . . . . 3 . Secondary . | . . . . . . . . . . . . . . . . . . . . . . . . . Self-Inflicted Damage 1431 | . . 58 . 65 69 206 . . . . 57 . . 35 . 66 . . . . 740 . . 135 Shots 74 | . . 4 . 3 3 4 . . . . 2 . . 2 . 4 . . . . 51 . . 1 Rammed . | . . . . . . . . . . . . . . . . . . . . . . . . . Targets Rammed 30 | . . . . . . . . . . . . . . 6 . 9 . . . 9 . . 6 . Kicked 30 | . . . . . . . . . . . . . . 6 . 9 . . . 9 . . 6 . Crushed . | . . . . . . . . . . . . . . . . . . . . . . . . . Highest Temperature 297 | . 59 15 . 12 232 269 30 260 227 . 30 24 . 297 . 260 253 127 236 171 274 94 216 198 Average Temperature 82 | . 15 8 . 6 52 73 15 118 102 . 13 11 . 87 . 84 88 67 118 78 101 94 105 108 Received Heat Transfer 5094 | . 336 29 . . 315 543 144 . 141 51 12 54 . 265 . 697 215 9 . 463 1223 106 491 . Effects 3 | . . . . . 1 . . . . . . . . . . . . . . . 2 . . . Energy Bleed 1 | . . . . . 1 . . . . . . . . . . . . . . . . . . . Interference 2 | . . . . . . . . . . . . . . . . . . . . . 2 . . . Siege Activations . | . . . . . . . . . . . . . . . . . . . . . . . . . Martial Activations . | . . . . . . . . . . . . . . . . . . . . . . . . . Shielding Activations . | . . . . . . . . . . . . . . . . . . . . . . . . . Robots Disrupted 1 | . . . . . . . . . . . . . . . . . . . . . 1 . . . Combat Hostiles 1 | . . . . . . . . . . . . . . . . . . . . . 1 . . . Robots Corrupted 13 | . . . . . . . . . . . . . . 2 . . . . . . 11 . . . Combat Hostiles 13 | . . . . . . . . . . . . . . 2 . . . . . . 11 . . . Parts Fried 37 | . . . . . . 2 . . . . . . . . . 1 1 . . . 33 . . . Impact Corruptions 3 | . . . . . . . . . . . . . . 3 . . . . . . . . . . Robots Melted 1 | . . . . . . 1 . . . . . . . . . . . . . . . . . . Combat Hostiles 1 | . . . . . . 1 . . . . . . . . . . . . . . . . . . Parts Melted 28 | 1 . . . . . 3 . . . 2 1 . . . . 2 1 . . 6 5 1 6 . Heat Transferred 24542 | 777 470 . . . 100 1647 642 . 1110 507 444 37 . 814 . 2125 1862 462 300 5749 5428 325 1225 518 Parts Sabotaged . | . . . . . . . . . . . . . . . . . . . . . . . . . Parts Stolen . | . . . . . . . . . . . . . . . . . . . . . . . . . Parts Stripped . | . . . . . . . . . . . . . . . . . . . . . . . . . Power Chain Reactions 12 | . 2 . . . 2 . . . . . . . . . . . . . . . 8 . . . Alert | -11 -10 -10 -10 -9 -8 -7 -7 -7 -6 -6 -6 -6 -6 -6 -5 -5 -5 -5 -5 -4 -4 -3 -3 -3 ------- Run | Yrd Mat Min Exi Min Mat Fac Low Dat Pro Fac Low Low Zio Dee Pro Fac Ext Cet Arc Fac Arm Res Qua Sec Maximum Alert Level 5 | . . . . . 1 2 . . . 1 . . . . . 2 3 2 1 5 5 4 2 2 Low Security (%) 34 | 100 100 100 . 100 89 35 . . . 88 . . . . . 30 24 . . 2 . . . . Level 1 17 | . . . . . 10 33 . . . 11 . . . . . 60 21 . 99 6 . . 7 24 Level 2 24 | . . . . . . 31 . . . . . . . . . 9 35 100 . 11 . 40 92 75 Level 3 10 | . . . . . . . . . . . . . . . . . 19 . . 29 36 49 . . Level 4 7 | . . . . . . . . . . . . . . . . . . . . 33 23 10 . . Level 5 4 | . . . . . . . . . . . . . . . . . . . . 13 29 . . . High Security 1 | . . . . . . . . . . . . . . . . . . . . 2 10 . . . Max Security . | . . . . . . . . . . . . . . . . . . . . . . . . . Peak Influence 2204 | 10 149 87 . 154 236 534 . . . 218 . . . . . 415 805 638 314 2047 2204 1159 573 554 Initial 1159 | . . 37 . . . 104 . . . 114 . . . . . . 195 456 224 78 1100 1159 325 315 Average 494 | 1 89 13 . 35 105 292 . . . 50 . . . . . 253 428 564 261 1103 1373 812 471 471 Influence Increases 15139 | 40 603 161 . 314 655 1510 120 . 434 407 325 20 . . 30 1253 1215 382 170 3191 2604 104 1170 431 Destroy 0b10 Robot/C 7360 | . 320 40 . 200 320 880 100 . 320 80 260 20 . . 20 620 580 160 80 1260 1500 40 420 140 Destroy 0b10 Robot/NC 415 | 40 40 5 . 10 25 60 . . 5 15 5 . . . . 30 10 10 . 80 25 10 10 35 Destroy Leader 1386 | . 68 10 . 30 74 238 20 . 40 22 30 . . . 10 132 24 . . 278 252 12 112 34 Allied During Kill 1283 | . . . . 24 . 8 . . 69 18 . . . . . . 482 170 80 410 22 . . . Successful Hack 122 | . 35 . . . 15 30 . . . . . . . . . . . . . 7 . 7 28 . Disable Machine 1335 | . 30 30 . 15 105 120 . . . 15 . . . . . 180 30 . . 315 180 15 210 90 Anti-Garrison Action 600 | . . . . . . . . . . 200 . . . . . . . . . 200 . . 200 . Destroy Structure 1678 | . 35 76 . 35 101 84 . . . 27 . . . . . 216 44 42 10 476 280 20 100 132 Partial Spotted 60 | . 45 . . . . 15 . . . . . . . . . . . . . . . . . . Lose Combat Pursuer 900 | . 30 . . . 15 75 . . . 30 30 . . . . 75 45 . . 165 345 . 90 . Influence Decreases 14806 | 40 505 259 . 314 425 1287 374 199 251 391 480 64 . . 30 854 798 638 506 1378 2535 1734 1188 556 Entered New Map 4342 | . . 61 . . . 126 168 199 . 69 74 9 . . . . 204 360 336 146 1040 1050 254 246 Time Decay 7315 | 40 465 178 . 275 395 761 206 . 221 302 406 55 . . 30 584 534 238 110 702 595 404 634 180 Lost Part 1179 | . 30 20 . 19 30 50 . . 10 . . . . . . 60 20 . . 70 370 70 300 130 Lost Ally 620 | . 10 . . 20 . 50 . . 20 20 . . . . . 60 40 40 60 160 80 60 . . Purge Threat 1350 | . . . . . . 300 . . . . . . . . . 150 . . . 300 450 150 . . Squads Dispatched 106 | . 3 . . 1 4 23 . . 1 8 . . . . . 14 1 . . 19 18 4 7 3 Investigation 28 | . 3 . . 1 3 6 . . . 4 . . . . . 2 . . . 3 . 2 4 . Extermination 24 | . . . . . . 8 . . . 3 . . . . . 4 . . . 5 3 . 1 . Reinforcement 20 | . . . . . 1 3 . . . 1 . . . . . 3 . . . 5 2 2 1 2 Assault 24 | . . . . . . . . . 1 . . . . . . 2 1 . . 6 13 . . 1 Garrison 10 | . . . . . . 6 . . . . . . . . . 3 . . . . . . 1 . Intercept . | . . . . . . . . . . . . . . . . . . . . . . . . . Searches Triggered . | . . . . . . . . . . . . . . . . . . . . . . . . . Data Miner Redirects 8 | . . . . . . . . . . 3 . . . . . . . . . 2 1 . 1 1 Construction Impeded 4 | . . . . . . . . . . . . . . . . 1 . . . 3 . . . . Haulers Reinforced 3 | . . . . . . 1 . . . . . . . . . . . . . . . 1 . 1 Active Scanning Responses . | . . . . . . . . . . . . . . . . . . . . . . . . . Cargo Convoy Interrupts . | . . . . . . . . . . . . . . . . . . . . . . . . . Stealth | -11 -10 -10 -10 -9 -8 -7 -7 -7 -6 -6 -6 -6 -6 -6 -5 -5 -5 -5 -5 -4 -4 -3 -3 -3 --------- Run | Yrd Mat Min Exi Min Mat Fac Low Dat Pro Fac Low Low Zio Dee Pro Fac Ext Cet Arc Fac Arm Res Qua Sec Distress Signals 19 | . 1 . . . 1 . . . . . . . . . . 1 2 2 . 1 5 5 1 . Communications Jammed . | . . . . . . . . . . . . . . . . . . . . . . . . . Distress Signals . | . . . . . . . . . . . . . . . . . . . . . . . . . Times Spotted 619 | . 26 7 . 6 25 58 5 . 16 11 11 4 . 59 1 40 42 10 5 81 149 11 38 14 Peak Tracking Total 37 | . 3 3 . 2 5 4 4 . 5 2 4 4 . 37 1 4 7 5 1 6 21 5 5 6 Tactical Retreats 40 | . 2 . . . 1 4 . . . 2 2 . . . . 5 3 . . 7 11 . 3 . Traps | -11 -10 -10 -10 -9 -8 -7 -7 -7 -6 -6 -6 -6 -6 -6 -5 -5 -5 -5 -5 -4 -4 -3 -3 -3 ------- Run | Yrd Mat Min Exi Min Mat Fac Low Dat Pro Fac Low Low Zio Dee Pro Fac Ext Cet Arc Fac Arm Res Qua Sec Traps Triggered 9 | . 1 . . . 1 1 . . . . . . . . . 1 4 . . . 1 . . . Indirectly . | . . . . . . . . . . . . . . . . . . . . . . . . . Trap Hack Attempts 94 | . . . . 24 . 70 . . . . . . . . . . . . . . . . . . Triggered 2 | . . . . 1 . 1 . . . . . . . . . . . . . . . . . . Disarmed 2 | . . . . . . 2 . . . . . . . . . . . . . . . . . . Reprogrammed 23 | . . . . 2 . 21 . . . . . . . . . . . . . . . . . . Reused 16 | . . . . . . . . . . . . . . 16 . . . . . . . . . . Traps Extracted 42 | . . . . 1 . 21 . . 2 . . . . 18 . . . . . . . . . . Installed 48 | . . . . . . . . . . . . . . 48 . . . . . . . . . . Triggered . | . . . . . . . . . . . . . . . . . . . . . . . . . Fabricated Traps 7 | . . . . . . . . . . . . . . 7 . . . . . . . . . . Most Traps Carried 27 | . . . . 1 1 21 21 21 27 27 27 27 27 27 4 4 4 4 4 4 4 . . . Machines | -11 -10 -10 -10 -9 -8 -7 -7 -7 -6 -6 -6 -6 -6 -6 -5 -5 -5 -5 -5 -4 -4 -3 -3 -3 ---------- Run | Yrd Mat Min Exi Min Mat Fac Low Dat Pro Fac Low Low Zio Dee Pro Fac Ext Cet Arc Fac Arm Res Qua Sec Machines Disabled 96 | . 2 2 . 1 7 8 . . 1 1 . . . 4 . 12 3 . . 21 12 1 15 6 Max in Single Turn 6 | . 1 2 . 1 2 2 . . 1 1 . . . 1 . 4 1 . . 6 1 1 1 4 Garrison Access 6 | . . . . . 1 1 . . . 1 . . . . . 1 . . . 1 . . 1 . Energy Cycler 1 | . . . . . . . . . . . . . . . . . . . . . 1 . . . Machines Repaired . | . . . . . . . . . . . . . . . . . . . . . . . . . Machines Dismantled 1 | . . . . . . . . . . . . . . . . . . . . . 1 . . . Machines Sabotaged . | . . . . . . . . . . . . . . . . . . . . . . . . . Overloaded Fab Kills . | . . . . . . . . . . . . . . . . . . . . . . . . . Hacking | -11 -10 -10 -10 -9 -8 -7 -7 -7 -6 -6 -6 -6 -6 -6 -5 -5 -5 -5 -5 -4 -4 -3 -3 -3 --------- Run | Yrd Mat Min Exi Min Mat Fac Low Dat Pro Fac Low Low Zio Dee Pro Fac Ext Cet Arc Fac Arm Res Qua Sec Machines Accessed 76 | . 10 1 1 2 7 21 . 4 . 5 1 . 1 . . 5 . . . 4 2 3 9 . Terminals 36 | . 8 1 . . 6 8 . . . 3 . . . . . 1 . . . . . 3 6 . Fabricators 10 | . . . . . . 5 . . . . . . . . . 2 . . . 2 1 . . . Repair Stations 3 | . . . . . . 1 . . . . . . . . . . . . . . . . 2 . Recycling Units 8 | . 2 . . . . 2 . . . 1 . . . . . 1 . . . 1 1 . . . Scanalyzers 3 | . . . . . . 3 . . . . . . . . . . . . . . . . . . Garrison Access 7 | . . . . . 1 2 . . . 1 . . . . . 1 . . . 1 . . 1 . Total Hacks 241 | . 34 2 1 2 23 72 . 30 . 9 1 . 6 . . 17 . . . 11 7 8 18 . Successful 142 | . 12 . 1 2 8 57 . 30 . 1 1 . 6 . . 5 . . . 8 1 3 7 . Failed 99 | . 22 2 . . 15 15 . . . 8 . . . . . 12 . . . 3 6 5 11 . Catastrophic 12 | . 1 . . . 2 . . . . 1 . . . . . 2 . . . . 1 2 3 . Database Lockouts . | . . . . . . . . . . . . . . . . . . . . . . . . . Manual 112 | . 29 2 1 . 15 29 . . . 2 . . 4 . . 8 . 1 . 5 2 5 9 . Terminals 110 | . 29 2 . . 22 29 . . . 5 . . . . . 3 . . . . . 8 12 . Fabricators 25 | . . . . . . 10 . . . . . . . . . 7 . . . 6 2 . . . Repair Stations 8 | . . . . . . 4 . . . . . . . . . . . . . . . . 4 . Recycling Units 25 | . 5 . . . . 8 . . . 1 . . . . . 2 . . . 4 5 . . . Scanalyzers 15 | . . . . . . 15 . . . . . . . . . . . . . . . . . . Garrison Access 18 | . . . . . 1 6 . . . 3 . . . . . 5 . . . 1 . . 2 . Terminal Hacks 72 | . 4 . 1 2 5 15 . 30 . . 1 . 6 . . . . . . . . 3 5 . Record 14 | . . . . . . . . 11 . . . . . . . . . . . . . . 3 . Part Schematic 22 | . 1 . . . 1 2 . 12 . . . . 6 . . . . . . . . . . . Robot Schematic 4 | . . . . . . . . 4 . . . . . . . . . . . . . . . . Prototype ID Bank 7 | . 2 . . . 2 . . 3 . . . . . . . . . . . . . . . . Open Door 3 | . . . . 2 . . . . . . 1 . . . . . . . . . . . . . Branch Access Points 3 | . . . . . 1 1 . . . . . . . . . . . . . . . 1 . . Terminal Index 1 | . . . . . . 1 . . . . . . . . . . . . . . . . . . Alert Level 2 | . . . . . . 1 . . . . . . . . . . . . . . . 1 . . Unreport Threat 3 | . . . . . . 2 . . . . . . . . . . . . . . . 1 . . Locate Traps 4 | . 1 . . . . 3 . . . . . . . . . . . . . . . . . . Reprogram Traps 1 | . . . . . . 1 . . . . . . . . . . . . . . . . . . Reinforcement Status 1 | . . . . . . 1 . . . . . . . . . . . . . . . . . . Recall Reinforcements 1 | . . . . . . 1 . . . . . . . . . . . . . . . . . . Registered Components 2 | . . . . . 1 1 . . . . . . . . . . . . . . . . . . Registered Prototypes 1 | . . . . . . 1 . . . . . . . . . . . . . . . . . . Zone Layout 2 | . . . . . . . . . . . . . . . . . . . . . . . 2 . Proto ID Catalog 1 | . . . 1 . . . . . . . . . . . . . . . . . . . . . Fabricator Hacks 12 | . . . . . . 7 . . . . . . . . . 2 . . . 3 . . . . Network Status 1 | . . . . . . 1 . . . . . . . . . . . . . . . . . . Load Schematic 6 | . . . . . . 3 . . . . . . . . . 1 . . . 2 . . . . Build 5 | . . . . . . 3 . . . . . . . . . 1 . . . 1 . . . . Repair Station Hacks 2 | . . . . . . 2 . . . . . . . . . . . . . . . . . . Scan Component 1 | . . . . . . 1 . . . . . . . . . . . . . . . . . . Repair 1 | . . . . . . 1 . . . . . . . . . . . . . . . . . . Recycling Unit Hacks 7 | . 1 . . . . 4 . . . . . . . . . . . . . 1 1 . . . Process 1 | . . . . . . 1 . . . . . . . . . . . . . . . . . . Report Inventory 1 | . . . . . . 1 . . . . . . . . . . . . . . . . . . Retrieve Matter 1 | . . . . . . 1 . . . . . . . . . . . . . . . . . . Retrieve Components 4 | . 1 . . . . 1 . . . . . . . . . . . . . 1 1 . . . Scanalyzer 13 | . . . . . . 13 . . . . . . . . . . . . . . . . . . Insert Component 6 | . . . . . . 6 . . . . . . . . . . . . . . . . . . Analyze 7 | . . . . . . 7 . . . . . . . . . . . . . . . . . . Garrison Access Hacks 3 | . . . . . 1 1 . . . . . . . . . 1 . . . . . . . . Seal Access 3 | . . . . . 1 1 . . . . . . . . . 1 . . . . . . . . Unauthorized Hacks 33 | . 7 . . . 2 15 . . . 1 . . . . . 2 . . . 4 . . 2 . Terminals 14 | . 5 . . . 2 6 . . . . . . . . . 1 . . . . . . . . Assimilate 5 | . 2 . . . 1 2 . . . . . . . . . . . . . . . . . . Botnet 8 | . 3 . . . 1 3 . . . . . . . . . 1 . . . . . . . . Operators 1 | . . . . . . 1 . . . . . . . . . . . . . . . . . . Fabricators 3 | . . . . . . 1 . . . . . . . . . 1 . . . 1 . . . . Fabnet 3 | . . . . . . 1 . . . . . . . . . 1 . . . 1 . . . . Repair Stations 1 | . . . . . . . . . . . . . . . . . . . . . . . 1 . Patch 1 | . . . . . . . . . . . . . . . . . . . . . . . 1 . Recycling Units 8 | . 2 . . . . 4 . . . . . . . . . . . . . 2 . . . . Monitor 2 | . . . . . . 1 . . . . . . . . . . . . . 1 . . . . Reject 2 | . 1 . . . . 1 . . . . . . . . . . . . . . . . . . Recyclers 2 | . . . . . . 1 . . . . . . . . . . . . . 1 . . . . Mask 2 | . 1 . . . . 1 . . . . . . . . . . . . . . . . . . Scanalyzers . | . . . . . . . . . . . . . . . . . . . . . . . . . Garrison Access 7 | . . . . . . 4 . . . 1 . . . . . . . . . 1 . . 1 . Broadcast 1 | . . . . . . 1 . . . . . . . . . . . . . . . . . . Reprogram 2 | . . . . . . 2 . . . . . . . . . . . . . . . . . . Watchers 1 | . . . . . . 1 . . . . . . . . . . . . . . . . . . Jam 3 | . . . . . . . . . . 1 . . . . . . . . . 1 . . 1 . Data Cores Recovered . | . . . . . . . . . . . . . . . . . . . . . . . . . Used . | . . . . . . . . . . . . . . . . . . . . . . . . . Hacking Detections 59 | . 10 1 . . 6 17 . . . 5 . . . . . 5 . . . 3 2 3 7 . Full Trace Events 21 | . 4 . . . 4 5 . . . 2 . . . . . 2 . . . 2 . . 2 . Feedback Events 1 | . . . . . 1 . . . . . . . . . . . . . . . . . . . Corruption 1 | . . . . . 1 . . . . . . . . . . . . . . . . . . . Feedback Blocked . | . . . . . . . . . . . . . . . . . . . . . . . . . Robot Schematics Acquired 10 | . . . . . . . . 4 . . . . 3 . . . . . . . . . . 3 Robots Built . | . . . . . . . . . . . . . . . . . . . . . . . . . Authchips . | . . . . . . . . . . . . . . . . . . . . . . . . . Time . | . . . . . . . . . . . . . . . . . . . . . . . . . Total Robot Build Rating . | . . . . . . . . . . . . . . . . . . . . . . . . . Part Schematics Acquired 51 | . 1 . . . 1 8 . 12 . . . . 20 . . . . . . . . . . 9 Parts Built 9 | . . . . . . 6 . . . . . . . . . 2 . . . 1 . . . . Authchips . | . . . . . . . . . . . . . . . . . . . . . . . . . Time 336 | . . . . . . 168 . . . . . . . . . 117 . . . 51 . . . . Total Part Build Rating 39 | . . . . . . 24 . . . . . . . . . 14 . . . 1 . . . . Parts Repaired 1 | . . . . . . 1 . . . . . . . . . . . . . . . . . . Time 14 | . . . . . . 14 . . . . . . . . . . . . . . . . . . Parts Recycled . | . . . . . . . . . . . . . . . . . . . . . . . . . Recycled Matter 270 | . . . . . . 270 . . . . . . . . . . . . . . . . . . Retrieved Matter 312 | . . . . . . 312 . . . . . . . . . . . . . . . . . . Retrieved Components 31 | . 9 . . . . 9 . . . . . . . . . . . . . 10 3 . . . Parts Scanalyzed 6 | . . . . . . 6 . . . . . . . . . . . . . . . . . . Part Schematics Acquired 6 | . . . . . . 6 . . . . . . . . . . . . . . . . . . Parts Damaged . | . . . . . . . . . . . . . . . . . . . . . . . . . Bothacking | -11 -10 -10 -10 -9 -8 -7 -7 -7 -6 -6 -6 -6 -6 -6 -5 -5 -5 -5 -5 -4 -4 -3 -3 -3 ------------ Run | Yrd Mat Min Exi Min Mat Fac Low Dat Pro Fac Low Low Zio Dee Pro Fac Ext Cet Arc Fac Arm Res Qua Sec Used RIF Installer . | . . . . . . . . . . . . . . . . . . . . . . . . . Robots Hacked 11 | . . . . . . 1 . . 1 . . . . 1 . . . . . 2 6 . . . Non-combat 2 | . . . . . . 1 . . . . . . . 1 . . . . . . . . . . Combat 9 | . . . . . . . . . 1 . . . . . . . . . . 2 6 . . . Robot Hacks Applied 3 | . . . . . . 2 . . . . . . . 1 . . . . . . . . . . parse_system 2 | . . . . . . 1 . . . . . . . 1 . . . . . . . . . . find_chute 1 | . . . . . . 1 . . . . . . . . . . . . . . . . . . Relay Couplers Released . | . . . . . . . . . . . . . . . . . . . . . . . . . Fabnet Peak Effective % 3 | . . . . . . . . . 3 3 3 3 3 3 1 1 1 1 1 3 3 1 1 1 Autooverrided 9 | . . . . . . . . . 1 . . . . . . . . . . 2 6 . . . Robots Rewired 23 | . . . . . . . . . 1 . . . . . . . 21 . . . 1 . . . Allies Hacked 1 | . . . . . . 1 . . . . . . . . . . . . . . . . . . Hacks Repelled . | . . . . . . . . . . . . . . . . . . . . . . . . . Allies | -11 -10 -10 -10 -9 -8 -7 -7 -7 -6 -6 -6 -6 -6 -6 -5 -5 -5 -5 -5 -4 -4 -3 -3 -3 -------- Run | Yrd Mat Min Exi Min Mat Fac Low Dat Pro Fac Low Low Zio Dee Pro Fac Ext Cet Arc Fac Arm Res Qua Sec Total Allies 61 | . 1 3 . . . 3 . . 3 . . . 3 . . 1 33 5 . 2 7 . . . Largest Group 32 | . 1 3 3 2 . 2 . . 2 1 . . 3 3 . 1 32 16 13 9 1 . . . Highest-Rated Group 1099 | . 10 40 40 32 . 38 . . 111 67 . . 71 71 . 26 1099 985 814 565 64 . . . Highest-Rated Ally 159 | . 10 16 16 16 . 26 . . 96 67 . . 31 31 . 26 159 159 159 96 64 . . . Total Orders 61 | . . . . 1 . . . . . . 4 12 1 . . 17 4 1 . 9 3 9 . . STAY 3 | . . . . 1 . . . . . . . . . . . . . . . 1 . 1 . . ROAM 4 | . . . . . . . . . . . . 1 . . . 1 . . . 1 . 1 . . FOLLOW 3 | . . . . . . . . . . . . . . . . 2 . . . . . 1 . . GUARD 1 | . . . . . . . . . . . . . . . . . . . . 1 . . . . EXPLORE 17 | . . . . . . . . . . . 2 7 . . . 5 2 . . . . 1 . . RETURN 33 | . . . . . . . . . . . 2 4 1 . . 9 2 1 . 6 3 5 . . Ally Attacks 407 | . . . . 10 . 20 . . 26 . . . . 25 . . 145 50 14 105 12 . . . Total Damage 9857 | . . . . 82 . 166 . . 884 . . . . 572 . . 3311 1483 339 2735 285 . . . Kills 69 | . . . . 3 . 2 . . 6 . . . . 6 . . 22 10 4 16 . . . . Allies Corrupted 2 | . . . . . . . . . . . . . . . . . . . . 1 . 1 . . Allies Melted . | . . . . . . . . . . . . . . . . . . . . . . . . . Intel | -11 -10 -10 -10 -9 -8 -7 -7 -7 -6 -6 -6 -6 -6 -6 -5 -5 -5 -5 -5 -4 -4 -3 -3 -3 ------- Run | Yrd Mat Min Exi Min Mat Fac Low Dat Pro Fac Low Low Zio Dee Pro Fac Ext Cet Arc Fac Arm Res Qua Sec Active Infowar (turns) 33942 | 142 257 . . . 600 3009 429 138 1539 1108 1207 1238 2360 9831 738 2429 1502 509 232 3129 803 622 1861 259 Optics 15503 | . . . . . . . . . . . . . . 6161 738 2429 1502 509 232 3129 803 . . . Sensors 22901 | . . . . . 191 2999 . . . 822 899 1238 2360 6446 738 2292 1191 253 . 833 . 528 1852 259 Terrain 1832 | . . . . . . . . . . . . . . . . 69 . . . 949 181 328 305 . Structural 4171 | . . . . . . 10 429 138 1539 1108 947 . . . . . . . . . . . . . Traps 4614 | . . . . . . . . . . 399 1207 1238 1770 . . . . . . . . . . . Seismic 399 | 142 257 . . . . . . . . . . . . . . . . . . . . . . . Jamming 729 | . . . . . 600 80 . . . . . . . . . . . . . . . . . 49 ECM 229 | . . . . . . . . . . . . . . . . . . . . . . . 229 . Robot Analysis Total . | . . . . . . . . . . . . . . . . . . . . . . . . . Derelict Logs Recovered 12 | . . 1 . 3 . . 1 . 1 . 1 2 2 . 1 . . . . . . . . . Drone Launches 56 | . . . . . . . . . . . 3 6 1 . . 18 4 1 . 6 3 14 . . Drone Recoveries 37 | . . . . . . . . . . . 3 5 1 . . 9 1 1 . 6 3 8 . . Exploration | -11 -10 -10 -10 -9 -8 -7 -7 -7 -6 -6 -6 -6 -6 -6 -5 -5 -5 -5 -5 -4 -4 -3 -3 -3 ------------- Run | Yrd Mat Min Exi Min Mat Fac Low Dat Pro Fac Low Low Zio Dee Pro Fac Ext Cet Arc Fac Arm Res Qua Sec Turns Passed 41377 | 271 1192 786 333 1172 1181 4214 429 138 1539 1108 1207 1238 2360 9983 738 2429 1502 509 232 3129 2131 975 2220 361 Spaces Moved 21592 | 112 848 529 229 648 593 2235 257 93 870 581 643 505 1336 6323 402 837 533 193 110 1098 720 502 1223 172 Core 97 | 16 . . . . . . . . . . . . . . . . . . . . 45 36 . . Treads . | . . . . . . . . . . . . . . . . . . . . . . . . . Legs 6152 | . . . . . . . . . . . . . . 443 402 837 533 193 110 1098 675 466 1223 172 Wheels 14249 | 96 848 529 229 648 593 2235 257 93 870 581 643 505 1336 4786 . . . . . . . . . . Hover 1094 | . . . . . . . . . . . . . . 1094 . . . . . . . . . . Flight . | . . . . . . . . . . . . . . . . . . . . . . . . . Fastest Speed 28 | 50 80 140 140 140 135 135 160 145 145 160 160 160 160 28 180 180 180 180 180 180 50 50 106 100 Average Speed 151 | 85 102 140 140 140 148 145 160 145 159 160 160 160 170 139 180 190 183 193 181 196 182 130 129 139 Slowest Speed 270 | 100 140 140 140 140 230 160 160 160 160 160 160 160 175 210 180 210 210 210 210 240 270 190 186 176 Overloaded Moves . | . . . . . . . . . . . . . . . . . . . . . . . . . Propulsion Burnouts . | . . . . . . . . . . . . . . . . . . . . . . . . . Robots Hopped . | . . . . . . . . . . . . . . . . . . . . . . . . . Potential Cave-ins 7 | . . . . . . . . . . . . . . . . . . . . 2 3 . 2 . Cave-ins Triggered . | . . . . . . . . . . . . . . . . . . . . . . . . . Teleports 3 | . . . . . . . . . . . . . . . . . . . . . . . 3 . Exploration Rate (%) 60 | 6 98 98 62 99 45 40 36 70 81 19 65 93 89 94 58 31 79 78 87 36 46 13 92 9 Regions Visited 24 Branch Regions 17 Pre-discovered Areas 6 | . . 1 . . . . . 1 . . . 1 3 . . . . . . . . . . . Known Exits Taken 19 | . . . . . 1 1 1 1 1 1 1 1 1 1 1 1 1 1 1 1 1 1 1 . Unknown Exits Taken 5 | 1 1 1 1 1 . . . . . . . . . . . . . . . . . . . . Scrap Searched 18 | . . 1 . 1 . . 2 . 3 . 2 3 5 . 1 . . . . . . . . . Spaces Dug 200 | . 8 16 . 22 11 17 . . . 9 21 . . 4 . 24 5 1 . 34 19 4 5 . Terrain Destroyed 1353 | . 33 95 . 35 105 86 5 . 68 30 122 32 . 26 20 123 16 5 1 218 155 11 58 109 Melee . | . . . . . . . . . . . . . . . . . . . . . . . . . Projectile 356 | . . . . . 1 20 5 . 28 11 4 1 . 26 1 20 16 5 1 82 64 11 41 19 AOE 997 | . 33 95 . 35 104 66 . . 40 19 118 31 . . 19 103 . . . 136 91 . 17 90 Terrain Rammed . | . . . . . . . . . . . . . . . . . . . . . . . . . Walls Destroyed . | . . . . . . . . . . . . . . . . . . . . . . . . . Machines Disabled . | . . . . . . . . . . . . . . . . . . . . . . . . . Actions | -11 -10 -10 -10 -9 -8 -7 -7 -7 -6 -6 -6 -6 -6 -6 -5 -5 -5 -5 -5 -4 -4 -3 -3 -3 --------- Run | Yrd Mat Min Exi Min Mat Fac Low Dat Pro Fac Low Low Zio Dee Pro Fac Ext Cet Arc Fac Arm Res Qua Sec Total 28641 | 225 1059 559 245 907 808 2921 270 95 1000 717 772 921 1418 7486 414 1548 970 308 131 1794 1423 767 1629 254 Wait 3609 | 64 28 5 3 201 79 317 6 1 59 65 75 399 51 616 11 530 79 69 16 412 233 160 93 37 Move 21569 | 111 847 528 228 647 592 2234 256 92 869 580 642 504 1335 6322 401 836 532 192 109 1097 719 501 1223 172 Hop . | . . . . . . . . . . . . . . . . . . . . . . . . . Pick Up 395 | 11 46 2 5 8 18 23 2 . 6 6 1 2 5 144 . 7 5 . . 7 21 2 70 4 Fast Attach 272 | 6 4 . . 2 12 21 . 1 8 7 1 2 10 56 . 11 4 6 . 19 32 29 32 9 Attach 129 | 1 2 2 1 2 5 9 1 . 8 3 3 . 1 20 . 5 1 . . 7 25 3 27 3 Detach 53 | . 1 . . . . 6 . . 3 . 1 . 1 12 . 3 1 . . 4 15 1 3 2 Swap 222 | . 15 6 . 5 18 48 . . 9 9 12 4 . 23 . 13 9 8 . 15 20 1 7 . Drop 581 | 2 37 2 8 9 25 44 2 1 14 14 1 2 15 179 . 28 15 15 . 50 64 24 29 1 Fire 1351 | 30 79 14 . 9 59 147 3 . 15 33 36 8 . 57 2 104 61 18 6 174 284 46 140 26 Melee 3 | . . . . . . 2 . . . . . . . 1 . . . . . . . . . . Ram . | . . . . . . . . . . . . . . . . . . . . . . . . . Kick 29 | . . . . . . . . . . . . . . 6 . 9 . . . 9 . . 5 . Crush . | . . . . . . . . . . . . . . . . . . . . . . . . . Escape Stasis 20 | . . . . . . . . . . . . . . . . . 20 . . . . . . . Rewire 258 | . . . . . . . . . 9 . . . . 2 . . 243 . . . 4 . . . Trap 142 | . . . . 24 . 70 . . . . . . . 48 . . . . . . . . . . Miscellaneous 8 | . . . . . . . . . . . . . . . . 2 . . . . 6 . . . Route ------- -11/Scrapyard -10/Materials (discovered 6 exits: [*Mat x3] / *Min x2 / [*Sub]) -10/Mines (discovered 4 exits: [*Mat x2] / *Exi / [*Sub]) -10/Exiles -9/Mines (discovered 2 exits: *Mat x2) -8/Materials (discovered 3 exits: *Fac x3) -7/Factory (discovered 4 exits: *Fac / Sto / *Low x2) -7/Lower Caves -7/Data Miner -6/Proximity Caves -6/Factory -6/Lower Caves -6/Lower Caves (discovered 2 exits: *Fac / *Zio) -6/Zion (discovered 2 exits: *Dee / *Pro) -6/Deep Caves -5/Proximity Caves -5/Factory (discovered 8 exits: Fac x4 / Upp x2 / *Ext x2) -5/Extension (discovered 2 exits: *Fac / *Cet) -5/Cetus (discovered 2 exits: *Fac / *Arc) -5/Archives (discovered 3 exits: *Fac / *Hub x2) -4/Factory (discovered 7 exits: *Res x4 / *Upp x2 / *Arm) -4/Armory -3/Research (discovered 3 exits: *Res / *Qua x2) -3/Quarantine (discovered 3 exits: *Res / *Sec / [*Frg]) -3/Section 7 History --------- Turn | Location | Event 5 | -11/Scrapyard | Discovered new exit (range 16) 272 | -11/Scrapyard | Entered Materials 292 | -10/Materials | Discovered new exit (range 16) 311 | -10/Materials | Build established: Mutant 466 | -10/Materials | Discovered new exit (range 16) 673 | -10/Materials | Discovered new exit (range 13) 675 | -10/Materials | Discovered new exit (range 5) 1229 | -10/Materials | Discovered new exit (range 13) 1386 | -10/Materials | Discovered new exit (range 7) 1464 | -10/Materials | Entered Mines 1465 | -10/Mines | Assembled infested the area 1487 | -10/Mines | Found a damaged Exp. Sensor Array with a note attached 1490 | -10/Mines | Found Prototype Device 1497 | -10/Mines | Identified Exp. Sensor Array 1646 | -10/Mines | Discovered new exit (range 13) 1828 | -10/Mines | Core integrity fell below 50% 1851 | -10/Mines | Discovered new exit (range 11) 1882 | -10/Mines | Discovered new exit (range 8) 2028 | -10/Mines | Deemed a non-threat by the Exiles lab entrance 2028 | -10/Mines | Discovered new exit (range 5) 2067 | -10/Mines | Assisted by bots powering up and referring to "LRC-V3" 2250 | -10/Mines | Entered Exiles 2250 | -10/Exiles | Accompanied by 3 allies 2285 | -10/Exiles | Met 8R-AWN 2311 | -10/Exiles | Met EX-HEX 2347 | -10/Exiles | Met EX-BIN 2364 | -10/Exiles | Aligned with FarCom system 2365 | -10/Exiles | Given EX-Vault access code 2400 | -10/Exiles | Opened EX-Vault 2414 | -10/Exiles | Found AWS/Thermal 2420 | -10/Exiles | Found AWS/Gauss 2428 | -10/Exiles | Found Lightpack 2.0 2462 | -10/Exiles | Warned to stay clear of 0b10 Research branches 2503 | -10/Exiles | Met EX-DEC 2566 | -10/Exiles | Discovered new exit (range 10) 2583 | -10/Exiles | Stole three prototypes: Lightpack 2.0, AWS/Thermal, AWS/Gauss 2583 | -10/Exiles | Entered Mines 2583 | -9/Mines | Accompanied by 3 allies 2613 | -9/Mines | Learned location of 1 exit from Materials 2675 | -9/Mines | Learned location of 1 exit from Materials 2699 | -9/Mines | Discovered new exit (range 5) 2714 | -9/Mines | Met a Derelict shopkeep closing up shop 2833 | -9/Mines | Learned 2 Materials zone layouts 2890 | -9/Mines | Discovered new exit (range 15) 2897 | -9/Mines | Received a Rocket Launcher from a helpful Derelict 3129 | -9/Mines | Met a Derelict who couldn't figure out how to use a Trap Extractor 3755 | -9/Mines | Entered Materials 3755 | -8/Materials | Evolved 4 slots: Utility x4 3756 | -8/Materials | Identified exit to Factory 4290 | -8/Materials | Discovered exit to Factory (range 14) 4736 | -8/Materials | Lost 3 parts (1p2u) 4936 | -8/Materials | Entered Factory 4936 | -7/Factory | Evolved 2 slots: Utility x2 4938 | -7/Factory | FarCom data flow suspended 5130 | -7/Factory | Garrison activated, responded to threat 5291 | -7/Factory | Build established: Hacker-Mutant 5731 | -7/Factory | Identified exit to Storage 5731 | -7/Factory | Identified exit to Lower Caves 6110 | -7/Factory | Fabricated Imp. Trap Extractor (x2) 6276 | -7/Factory | Fabricated Arm. Huge Wheel? 6328 | -7/Factory | Fabricated Imp. Trap Extractor (x2) 7058 | -7/Factory | Garrison activated, responded to threat 7063 | -7/Factory | Core integrity fell below 50% 7538 | -7/Factory | System corruption reached 10% 7617 | -7/Factory | Repaired Arm. Huge Wheel 7714 | -7/Factory | Build established: Trapper-Mutant 8273 | -7/Factory | Discovered new exit (range 15) 8293 | -7/Factory | Identified exit to Factory 8744 | -7/Factory | Core integrity fell below 20% 9150 | -7/Factory | Entered Lower Caves 9253 | -7/Lower Caves | Learned 12 Factory zone layouts 9491 | -7/Lower Caves | A Derelict revealed a hidden shortcut to meet someone special 9498 | -7/Lower Caves | Identified exit to Data Miner 9579 | -7/Lower Caves | Entered Data Miner 9580 | -7/Data Miner | Discovered new exit (range 6) 9608 | -7/Data Miner | Met Data Miner 9637 | -7/Data Miner | Learned location of Section 7 (-3) 9637 | -7/Data Miner | Acquired the access code to Warlord's prototype stash 9657 | -7/Data Miner | Received God Mode back door access code from Data Miner 9715 | -7/Data Miner | Identified exit to Proximity Caves 9717 | -7/Data Miner | Entered Proximity Caves 9743 | -6/Proximity Caves | Spotted B-75 Beast 9745 | -6/Proximity Caves | Escorted by Enhanced Grunt 9755 | -6/Proximity Caves | Allies destroyed B-75 Beast 9842 | -6/Proximity Caves | Learned Factory machine intel 10746 | -6/Proximity Caves | Attracted the attention of an 0b10 outpost 10804 | -6/Proximity Caves | AWS/Thermal suddenly broke down 10939 | -6/Proximity Caves | Attracted the attention of an 0b10 checkpoint 11242 | -6/Proximity Caves | Discovered exit to Factory (range 5) 11256 | -6/Proximity Caves | Entered Factory 11256 | -6/Factory | Accompanied by 1 ally 11256 | -6/Factory | Evolved 2 slots: Utility x2 11257 | -6/Factory | Identified exit to Lower Caves 11258 | -6/Factory | Loaded intel: 273 machine locations 11451 | -6/Factory | Incoming investigation squad redirected 11804 | -6/Factory | Build established: Trapper-Skirmisher 12218 | -6/Factory | Incoming investigation squad redirected 12312 | -6/Factory | Incoming investigation squad redirected 12364 | -6/Factory | Entered Lower Caves 12650 | -6/Lower Caves | Build established: Trapper-Mutant 12859 | -6/Lower Caves | Learned Factory terminal intel 12972 | -6/Lower Caves | Build established: Trapper-Skirmisher 13361 | -6/Lower Caves | Found Alien Artifact 13361 | -6/Lower Caves | Identified Core Expander 13361 | -6/Lower Caves | Installed Core Expander, added new Utility slot 13439 | -6/Lower Caves | Discovered new exit (range 19) 13523 | -6/Lower Caves | Attracted the attention of an 0b10 checkpoint 13550 | -6/Lower Caves | Identified exit to Lower Caves 13571 | -6/Lower Caves | Entered another Lower Caves area 13595 | -6/Lower Caves | Discovered new exit (range 31) 14336 | -6/Lower Caves | Encountered a Warlord checkpoint 14453 | -6/Lower Caves | Discovered new exit (range 26) 14770 | -6/Lower Caves | Identified exit to Zion 14809 | -6/Lower Caves | Entered Zion 14974 | -6/Zion | Gained Derelict followers 15033 | -6/Zion | Discovered new exit (range 12) 15051 | -6/Zion | Identified exit to Proximity Caves 15250 | -6/Zion | Found Prototype Device 15250 | -6/Zion | Identified Bomb Factory No. 2 15316 | -6/Zion | Learned location of Extension (-5) 15347 | -6/Zion | Found Prototype Device 15347 | -6/Zion | Identified Phasing AFG 15411 | -6/Zion | Given the Hacking Drone Bay 15415 | -6/Zion | Found Prototype Device 15415 | -6/Zion | Identified Hacking Drone Bay 15769 | -6/Zion | Acquired unknown access codes intercepted by a Zionite 15903 | -6/Zion | Learned Factory terminal intel 16056 | -6/Zion | Learned location of Warlord (-5) 16324 | -6/Zion | Met Imprinter 16525 | -6/Zion | Found GAL Module 16875 | -6/Zion | Build established: Trapper-Mutant 17114 | -6/Zion | Opened final containment barrier to the Deep Caves 17145 | -6/Zion | Discovered new exit (range 3) 17145 | -6/Zion | Saw the warning signs outside the Deep Caves entrance 17147 | -6/Zion | Identified exit to Deep Caves 17169 | -6/Zion | Entered Deep Caves 17169 | -6/Deep Caves | Accompanied by 3 allies 18855 | -6/Deep Caves | Z-Facility disabled 18871 | -6/Deep Caves | Attacked by Z-Imprinter 18882 | -6/Deep Caves | Destroyed Z-Imprinter 19228 | -6/Deep Caves | Found Prototype Protection 19228 | -6/Deep Caves | Identified Zio. Weapon Casing 19546 | -6/Deep Caves | Discovered new exit (range 15) 19569 | -6/Deep Caves | Identified exit to Proximity Caves 20854 | -6/Deep Caves | Spotted AG-08681 21229 | -6/Deep Caves | Build established: Skirmisher 21894 | -6/Deep Caves | Found Prototype Protection 21894 | -6/Deep Caves | Identified Zio. Heavy Carapace 21923 | -6/Deep Caves | Found Zio. Weapon Casing 22106 | -6/Deep Caves | Found Zio. Weapon Casing 22195 | -6/Deep Caves | Build established: Mutant 22440 | -6/Deep Caves | Found Prototype Device 22440 | -6/Deep Caves | Identified Zio. Metafield Generator 22858 | -6/Deep Caves | Build established: Scavenger-Mutant 23014 | -6/Deep Caves | Spotted AG-66821 23747 | -6/Deep Caves | Build established: Skirmisher 24717 | -6/Deep Caves | Triggered Deep Caves wall 24717 | -6/Deep Caves | Spotted AS-80876 24717 | -6/Deep Caves | Spotted AS-17071 24733 | -6/Deep Caves | Exposed GOLEM chamber 24741 | -6/Deep Caves | Destroyed AS-17071 24763 | -6/Deep Caves | Lost 4 parts (2n2u) 24766 | -6/Deep Caves | Build established: Mutant 24767 | -6/Deep Caves | Destroyed AS-80876 24784 | -6/Deep Caves | Destroyed 30 combat bots 24970 | -6/Deep Caves | Found Unknown Processor 24972 | -6/Deep Caves | Found Surveybot 24 Scanner 25392 | -6/Deep Caves | Found Zio. Weapon Casing 25395 | -6/Deep Caves | Found Zio. Weapon Casing 25795 | -6/Deep Caves | Build established: Skirmisher 26001 | -6/Deep Caves | Found GOLEM Unit 26017 | -6/Deep Caves | Found GOLEM Unit 26225 | -6/Deep Caves | Build established: Golem 26570 | -6/Deep Caves | Found GOLEM Unit 26577 | -6/Deep Caves | Found GOLEM Unit 26584 | -6/Deep Caves | Found GOLEM Unit 26592 | -6/Deep Caves | Found GOLEM Unit 27152 | -6/Deep Caves | Entered Proximity Caves 27526 | -5/Proximity Caves | Learned Factory interactive machine intel 27868 | -5/Proximity Caves | Discovered new exit (range 12) 27886 | -5/Proximity Caves | Identified exit to Factory 27890 | -5/Proximity Caves | Entered Factory 27890 | -5/Factory | Evolved 2 slots: Utility x2 27891 | -5/Factory | Identified exit to Upper Caves 27892 | -5/Factory | Loaded intel: 56 interactive machine locations 27893 | -5/Factory | Loaded intel: 28 terminal locations 28340 | -5/Factory | Fabricated Adv. Thermal Shield (x2) 28401 | -5/Factory | Identified exit to Factory 28446 | -5/Factory | Garrison activated, responded to threat 29053 | -5/Factory | Lost 3 parts (2u1w) 29401 | -5/Factory | Discovered new exit (range 10) 29507 | -5/Factory | Identified exit to Extension 30290 | -5/Factory | First assault squad dispatched 30319 | -5/Factory | Entered Extension 30319 | -5/Extension | Accompanied by 4 allies 30350 | -5/Extension | Disrupted transfer network 30411 | -5/Extension | Lost 3 allies 30443 | -5/Extension | Rescued A7 30632 | -5/Extension | Rescued a captive Derelict 30643 | -5/Extension | Identified exit to Cetus 30668 | -5/Extension | Rescued a captive Derelict 30795 | -5/Extension | Rescued a captive Derelict 30799 | -5/Extension | Rescued a captive Derelict 30867 | -5/Extension | Rescued a captive Derelict 30868 | -5/Extension | Rescued a captive Derelict 30875 | -5/Extension | Spotted B-75 Beast 30903 | -5/Extension | Spotted B-75 Beast 30921 | -5/Extension | Allies destroyed B-75 Beast 30937 | -5/Extension | Destroyed B-75 Beast 31006 | -5/Extension | Build established: Commander-Golem 31030 | -5/Extension | Rescued a captive Derelict 31224 | -5/Extension | Rescued a captive Derelict 31225 | -5/Extension | Rescued a captive Derelict 31563 | -5/Extension | Rescued a captive Derelict 31564 | -5/Extension | Rescued a captive Derelict 31787 | -5/Extension | Discovered exit to Factory (range 10) 31819 | -5/Extension | First assault squad dispatched 31821 | -5/Extension | Entered Cetus 31821 | -5/Cetus | Accompanied by 12 allies (A7) 31826 | -5/Cetus | Acquired a Cetus Manufacturing Module code from A7 31842 | -5/Cetus | Spotted Cetus Guard 31843 | -5/Cetus | Spotted Cetus Guard 31845 | -5/Cetus | Spotted Cetus Guard 31845 | -5/Cetus | Spotted Cetus Guard 31850 | -5/Cetus | Allies destroyed Cetus Guard 31854 | -5/Cetus | Allies destroyed Cetus Guard 31856 | -5/Cetus | Allies destroyed Cetus Guard 31864 | -5/Cetus | Destroyed Cetus Guard 31993 | -5/Cetus | Started Cetus Manufacturing Module 32018 | -5/Cetus | Manufactured an Enhanced Grunt 32020 | -5/Cetus | Escorted A7 to Cetus Mainframe 32043 | -5/Cetus | Manufactured an Enhanced Grunt 32048 | -5/Cetus | Discovered new exit (range 19) 32068 | -5/Cetus | Manufactured an Enhanced Grunt 32093 | -5/Cetus | Manufactured an Enhanced Grunt 32118 | -5/Cetus | Manufactured an Enhanced Grunt 32119 | -5/Cetus | Spotted Cetus Guard 32120 | -5/Cetus | Spotted Cetus Guard 32121 | -5/Cetus | Spotted Cetus Guard 32123 | -5/Cetus | Destroyed Cetus Guard 32133 | -5/Cetus | Spotted Cetus Guard 32139 | -5/Cetus | Allies destroyed Cetus Guard 32144 | -5/Cetus | Allies destroyed Cetus Guard 32145 | -5/Cetus | Allies destroyed Cetus Guard 32148 | -5/Cetus | Discovered exit to Factory (range 20) 32166 | -5/Cetus | Lost 3 allies 32173 | -5/Cetus | Found Prototype Device 32173 | -5/Cetus | Identified Exp. Thermal Shield 32201 | -5/Cetus | Met Revision 17 32289 | -5/Cetus | Identified exit to Archives 32330 | -5/Cetus | Entered Archives 32330 | -5/Archives | Accompanied by 13 allies (A7) 32335 | -5/Archives | Received a hacking code to weaken MAIN.C 32378 | -5/Archives | Lost 3 allies 32386 | -5/Archives | Discovered new exit (range 20) 32397 | -5/Archives | Unable to access archive contents 32424 | -5/Archives | Identified exit to Hub_04(d) 32475 | -5/Archives | Discovered exit to Factory (range 14) 32503 | -5/Archives | Discovered exit to Hub_04(d) (range 15) 32562 | -5/Archives | Entered Factory 32562 | -4/Factory | Accompanied by 9 allies 32562 | -4/Factory | Evolved 2 slots: Power x1, Utility x1 32563 | -4/Factory | Loaded intel: 26 terminal locations 33062 | -4/Factory | First assault squad dispatched 33541 | -4/Factory | Build established: Golem 33637 | -4/Factory | Fabricated Hcp. Storage Unit (x1) 33648 | -4/Factory | Identified Surveybot 24 Chip 33879 | -4/Factory | Discovered new exit (range 11) 33904 | -4/Factory | Identified exit to Upper Caves 34080 | -4/Factory | Discovered new exit (range 7) 34093 | -4/Factory | Identified exit to Research 34296 | -4/Factory | Identified exit to Armory 34587 | -4/Factory | Incoming assault squad redirected 34619 | -4/Factory | Discovered exit to Research (range 4) 35424 | -4/Factory | Lost 3 parts (3u) 35588 | -4/Factory | Incoming assault squad redirected 35600 | -4/Factory | High security lockdown imminent 35680 | -4/Factory | High security lockdown engaged 35691 | -4/Factory | Entered Armory 35691 | -4/Armory | Spotted B-86 Titan 35708 | -4/Armory | Destroyed B-86 Titan 35735 | -4/Armory | Lost 5 parts (5u) 35754 | -4/Armory | Found Unknown Launcher 35757 | -4/Armory | Found Unknown Launcher 35919 | -4/Armory | Found Quantum Capacitor 36191 | -4/Armory | First assault squad dispatched 36252 | -4/Armory | Found Prototype Processor 36252 | -4/Armory | Identified Exp. Signal Interpreter 36260 | -4/Armory | Found Exp. Signal Interpreter 36363 | -4/Armory | Incoming assault squad redirected 36493 | -4/Armory | Energy Cycler disabled 36495 | -4/Armory | Identified Gamma Bomb Array (x2) 36534 | -4/Armory | Destroyed 10 combat bots 36813 | -4/Armory | System corruption reached 10% 36890 | -4/Armory | AWS/Gauss suddenly broke down 36922 | -4/Armory | Lost 7 parts (1p5u1w) 37082 | -4/Armory | Core integrity fell below 50% 37104 | -4/Armory | Lost 5 parts (2p3u) 37180 | -4/Armory | Found Quantum Capacitor 37211 | -4/Armory | Discovered exit to Research (range 11) 37244 | -4/Armory | Lost 4 parts (1p1n1u1w) 37588 | -4/Armory | High security lockdown imminent 37636 | -4/Armory | Destroyed 8 combat bots 37668 | -4/Armory | High security lockdown engaged 37785 | -4/Armory | Lost 7 parts (1p3u3w) 37794 | -4/Armory | Core integrity fell below 20% 37807 | -4/Armory | System corruption reached 30% 37822 | -4/Armory | Entered Research 37822 | -3/Research | Evolved 2 slots: Propulsion x1, Utility x1 37853 | -3/Research | Lost 4 parts (1n3u) 37983 | -3/Research | Lost 3 parts (3u) 38002 | -3/Research | Lost 3 allies 38026 | -3/Research | Revision forces began assault on 0b10 38036 | -3/Research | Met up with Revision 17++ 38046 | -3/Research | Lost 3 parts (1p1n1u) 38050 | -3/Research | Build established: Mutant 38201 | -3/Research | Lost 3 allies 38256 | -3/Research | Identified exit to Quarantine 38515 | -3/Research | Build established: Golem 38526 | -3/Research | Research terminal network offline 38596 | -3/Research | Discovered new exit (range 16) 38625 | -3/Research | Identified exit to Research 38663 | -3/Research | Found Prototype Device 38663 | -3/Research | Identified Exp. Thermal Defense Suite 38797 | -3/Research | Entered Quarantine 38799 | -3/Quarantine | Spotted Alpha 7 38884 | -3/Quarantine | Garrison activated, responded to threat 38893 | -3/Quarantine | Destroyed Alpha 7 38914 | -3/Quarantine | Found Prototype Processor 38916 | -3/Quarantine | Found Prototype Processor 38919 | -3/Quarantine | Found Prototype Device 38923 | -3/Quarantine | Lost 5 parts (4u1w) 38926 | -3/Quarantine | Identified Exp. ECM Suite 38957 | -3/Quarantine | Incoming investigation squad redirected 39004 | -3/Quarantine | Cryocooling Duct disabled 39019 | -3/Quarantine | Ambient heat levels rising (+20) 39019 | -3/Quarantine | Non-combat units ordered to evacuate 39036 | -3/Quarantine | Found Alien Artifact 39041 | -3/Quarantine | Identified Subatomic Replicator 39041 | -3/Quarantine | Used Subatomic Replicator to replicate Lightpack 2.0 39193 | -3/Quarantine | Lost 3 parts (1u2w) 39233 | -3/Quarantine | Found Alien Artifact 39340 | -3/Quarantine | Lost 5 parts (1p4u) 39370 | -3/Quarantine | Identified Exp. Target Analyzer 39375 | -3/Quarantine | Identified Exp. Targeting Computer 39486 | -3/Quarantine | Cryocooling Duct disabled 39489 | -3/Quarantine | Cryocooling Duct disabled 39501 | -3/Quarantine | Ambient heat levels rising (+20) 39501 | -3/Quarantine | Combat units ordered to evacuate 39504 | -3/Quarantine | Ambient heat levels rising (+20) 39526 | -3/Quarantine | Found Alien Artifact 39526 | -3/Quarantine | Identified Hpw. Transdimensional Reconstructor 39526 | -3/Quarantine | Warped through subspace 39585 | -3/Quarantine | Build established: Hauler-Mutant 39601 | -3/Quarantine | Quarantine Guard activated 39608 | -3/Quarantine | Found Alien Artifact 39610 | -3/Quarantine | Found Alien Artifact 39613 | -3/Quarantine | Found Alien Artifact 39623 | -3/Quarantine | Found Alien Artifact 39626 | -3/Quarantine | Found Alien Artifact 39628 | -3/Quarantine | Found Alien Artifact 39732 | -3/Quarantine | Spotted Quarantine Guard 39746 | -3/Quarantine | Identified Dimensional Node Initializer (x3) 39746 | -3/Quarantine | Initialized slip node 39748 | -3/Quarantine | Destroyed Quarantine Guard 39751 | -3/Quarantine | Spotted Quarantine Guard 39753 | -3/Quarantine | Core integrity fell below 50% 39753 | -3/Quarantine | Identified Transdimensional Reconstructor (x3) 39753 | -3/Quarantine | Warped through subspace 39753 | -3/Quarantine | Spotted Quarantine Guard 39753 | -3/Quarantine | Spotted Quarantine Guard 39753 | -3/Quarantine | Spotted Quarantine Guard 39753 | -3/Quarantine | Spotted Quarantine Guard 39754 | -3/Quarantine | Warped through subspace 39773 | -3/Quarantine | Destroyed Quarantine Guard 39803 | -3/Quarantine | Lost 7 parts (1p3n3u) 39849 | -3/Quarantine | Destroyed Quarantine Guard 39903 | -3/Quarantine | Found Alien Artifact 39986 | -3/Quarantine | Found Alien Artifact 39997 | -3/Quarantine | Found Alien Artifact 40004 | -3/Quarantine | Spotted Quarantine Guard 40019 | -3/Quarantine | Destroyed Quarantine Guard 40077 | -3/Quarantine | Discovered exit to Research (range 10) 40077 | -3/Quarantine | Spotted Quarantine Guard 40084 | -3/Quarantine | Spotted Quarantine Guard 40097 | -3/Quarantine | Destroyed Quarantine Guard 40183 | -3/Quarantine | Spotted Quarantine Guard 40193 | -3/Quarantine | Destroyed Quarantine Guard 40351 | -3/Quarantine | Identified Terrabomb (x2) 40351 | -3/Quarantine | Used Terrabomb 40361 | -3/Quarantine | Met incapacitated Sigix Warrior 40361 | -3/Quarantine | Lockdown squad dispatched 40364 | -3/Quarantine | Acquired the access code to the Sigix quarantine chamber 40367 | -3/Quarantine | Unlocked Sigix quarantine chamber 40371 | -3/Quarantine | Found Sigix Containment Pod 40398 | -3/Quarantine | Found Alien Energy Cannon 40440 | -3/Quarantine | Spotted Lightning 40449 | -3/Quarantine | Spotted Lightning 40471 | -3/Quarantine | Destroyed Lightning 40480 | -3/Quarantine | Destroyed Lightning 40575 | -3/Quarantine | Core integrity fell below 20% 40601 | -3/Quarantine | Destroyed Quarantine Guard 40683 | -3/Quarantine | Identified Phase Armor 40842 | -3/Quarantine | Identified Core Cannon 40857 | -3/Quarantine | Spotted Fortress 41008 | -3/Quarantine | Discovered new exit (range 6) 41008 | -3/Quarantine | Discovered new exit (range 6) 41008 | -3/Quarantine | Spotted Quarantine Guard 41016 | -3/Quarantine | Identified exit to Section 7 41017 | -3/Quarantine | Entered Section 7 41062 | -3/Section 7 | Found Alien Artifact 41062 | -3/Section 7 | Identified Integrity Redistributor 41062 | -3/Section 7 | Used Integrity Redistributor, redistributed integrity to core (+201) 41114 | -3/Section 7 | Scanned by Researcher 41126 | -3/Section 7 | Found Integrity Redistributor 41267 | -3/Section 7 | First assault squad dispatched 41287 | -3/Section 7 | Incoming assault squad redirected 41366 | -3/Section 7 | Used Integrity Redistributor, redistributed integrity to core (+52) 41377 | -3/Section 7 | Released all parts (8) 41378 | -3/Section 7 | Destroyed by H-77 Assassin with Coil Gun Last Messages --------------- 41372_ Coil Gun destroyed. 41373_ M-13 Machinist repairs H-77 Assassin. 41374_ S-43 Plague destroyed. 41375_ Acquired 30 matter. 41375_ Quantum Rifle destroyed. 41375_ Slug penetrates Earth. 41375_ Enh. Biometal Leg destroyed. 41375_ Transmission Jammer destroyed. 41376_ Exp. Targeting Computer destroyed. 41377_ Exp. Heat Sink destroyed. 41377_ Released Lrg. Storage Unit. 41377_ Released Adv. Sensor Array. 41377_ Released Adv. Coolant Injector. 41377_ Released Exp. Coolant Injector. 41377_ Released Asb. Combat Suite. 41377_ Released Surveybot 24 Chip. 41377_ Released Exp. Signal Interpreter. 41377_ Released Hds. Centrium Leg. 41377_ Acquired Unknown Flight Unit. 41377_ Identified Xenon Bombardment Thruster. Map ----- +----------------------------------------------------+ | ??? # | | # """"""" # | | ????""""""" # """"""" """ | | ?????"""""" # """"""" """ | | ??????? # """"""" """ | | ?????? # | | ??????T""##### | | ??????"""????# | | ?????????????#! | | ?????????????# ######+######+### | | ?????????????#%#??# # | | ?????????????# #??# "" # | | ?????????????# #??# " # " | | ?????????????# #??# "! # | | ?????????????# #??# ""% " # """ | | ?????????????# #??# "" " # """ | | ?????????????# #??# # | | ?????????????# #??# # | | ?????????????# #??# # | | ?##########??# #??############## | | ?# #### #?????????# ???? | | ## # #??????????# ??? | | # #???????????# #?? | | [ # #???????????? ?? | | !s!h/ #????????????? ? | | !!@%= m #?????????????# | | !!s #???????????????? | | s #???????????????? | | s #???????????????? | | # # #???????????????? | | # # #???????????????? | | ## + ??????????????? | | ## #### # "R????????????? | | ###?###??# # ""????????????? | | ??????????# #? ????????????? | | ??????????# #??#????????????? | | ??????????? #???????????????? | | ??????????? #???????????????? | | ??????????? ?????????????????? | | ???????????????????????????????? | | ???????????????????????????????? | | ???????????????????????????????? | | ???????????????????????????????? | | ???????????????????????????????? | | ???????????????????????????????? | | ???????????????????????????????? | | ???????????????????????????????? | | ???????????????????????????????? | | ???????????????????????????????? | | ???????????????????????????????? | +----------------------------------------------------+ Best States ------------- Heat Dissipation 134 Coolant Potential 220 Energy Generation 45 Energy Capacity 2900 Matter Stores 533 Matter Capacity 700 Sight Range 20 Robot Scan Range 20 Terrain Scan Range 24 Terrain Scan Density 2010 ECM Strength 3 Jamming Range 12 Additional Mass Support 20 EM Shielding 2 Armor Coverage 2800 Resistance: KI 20 Resistance: TH 30 Resistance: EX 15 Resistance: EM 15 Resistance: I 15 Resistance: S 15 Resistance: P 15 Core Shielding 20 Utility Shielding 66 Weapon Shielding 100 Phase Shifting 15 Evasion (%) 88 Targeting Accuracy 26 Target Analysis 10 Core Analysis 9 Armor Integrity Analysis 30 Recoil Reduction 1 Energy Filtering 30 Salvage Targeting 2 Offensive Hacking 40 Defensive Hacking 10 Authchip Count 2 Trap Extractor Capacity 8 Item Schematics ----------------- Hcp. Storage Unit | -10/Materials | Hacked Trap Scanner | -8/Materials | Hacked Imp. Trap Extractor | -7/Factory | Scanalyzed Adv. EMP Blaster | -7/Factory | Hacked Arm. Huge Wheel | -7/Factory | Hacked Prc. Grenade Launcher | -7/Factory | Scanalyzed Mni. Grenade Launcher | -7/Factory | Scanalyzed Imp. Utility Shielding | -7/Factory | Scanalyzed Arm. Wheel | -7/Factory | Scanalyzed Imp. Datajack | -7/Factory | Scanalyzed Combat Drone Bay | -7/Data Miner | Free Lgt. Regenerative Plating | -7/Data Miner | Free Multireflex Exoskeleton | -7/Data Miner | Free Gravity Neutralizer | -7/Data Miner | Free Cld. Plasma Cannon | -7/Data Miner | Free Adv. System Restoration Module | -7/Data Miner | Free Thunder Leg | -7/Data Miner | Free Hyp. Gauss Cannon | -7/Data Miner | Free Imp. Launcher Guidance Computer | -7/Data Miner | Free Adv. Field Recycling Unit | -7/Data Miner | Free Force Lance | -7/Data Miner | Free Adv. Thermal Shield | -7/Data Miner | Free Battle Cannon | -6/Zion | Free Flamer | -6/Zion | Free Beamcaster | -6/Zion | Free Slug Cannon | -6/Zion | Free Ripper | -6/Zion | Free Hvy. Beamcaster | -6/Zion | Free Coil Gun | -6/Zion | Archive Imp. Coolant Injector | -6/Zion | Archive Adv. Plasma Cannon | -6/Zion | Archive Lgt. Angular Momentum Engine | -6/Zion | Archive Antigrav System | -6/Zion | Archive Imp. Particle Charger | -6/Zion | Archive Adv. Focal Shield | -6/Zion | Archive Imp. Recalibrator | -6/Zion | Archive Flexi-carbon Leg | -6/Zion | Archive Imp. Heavy Armor Plating | -6/Zion | Archive Wave Gun | -6/Zion | Archive Drone Bay | -6/Zion | Archive Tesla Rifle | -6/Zion | Archive Matter Neutralizer | -6/Zion | Archive Exp. Target Analyzer | -3/Section 7 | Archive Exp. System Shield | -3/Section 7 | Archive Hvy. Tesla Rifle | -3/Section 7 | Archive Com. Mass Driver | -3/Section 7 | Archive Prc. Matter Filter | -3/Section 7 | Archive Adv. Remote Shield | -3/Section 7 | Archive Com. Particle Reactor | -3/Section 7 | Archive Enh. Multireflex Exoskeleton | -3/Section 7 | Archive Adv. KE Penetrator | -3/Section 7 | Archive Robot Schematics ------------------ S-27 Virus | -7/Data Miner | Free E-15 Imp | -7/Data Miner | Free G-47 Trooper | -7/Data Miner | Free R-10 Processor | -7/Data Miner | Free H-66 Slayer | -6/Zion | Archive L-41 Fighter | -6/Zion | Archive T-07 Excavator | -6/Zion | Archive A-02 Transporter | -3/Section 7 | Archive G-67 Veteran | -3/Section 7 | Archive M-30 Cleanser | -3/Section 7 | Archive Fabricated ------------ Imp. Trap Extractor | x2 | -7/Factory Arm. Huge Wheel | x2 | -7/Factory Imp. Trap Extractor | x2 | -7/Factory Adv. Thermal Shield | x2 | -5/Factory Hcp. Storage Unit | x1 | -4/Factory Repaired ---------- Arm. Huge Wheel | 7% | -7/Factory Alien Tech Used ----------------- Core Expander Subatomic Replicator High-powered Transdimensional Reconstructor Dimensional Node Initializer Transdimensional Reconstructor Terrabomb Phase Armor Core Cannon Integrity Redistributor Achievements -------------- Minesweeper Challenges ------------ None Game ------ Seed ExperimentalControlCleaver Manual? 0 Play Time 06:50:15 Cumulative 250.0 hours Start 2025.06.08 @ 10:31:23 End 2025.06.08 @ 19:49:12 Sessions 5 Manual Loads 0 Difficulty Rogue Special Mode None Game No. 239 Rogue 239 Adventurer 0 Explorer 0 Win Type - Total 1 Types 1/0/0/0/0/0/0/0/0/0 Lore% 75 Gallery% 76 Achievement% 68 Wizard Run 0 Options --------- Layout 1 ASCII 0 Keyboard 0 Movement Numpad Keybinds 0 Fullscreen 1 Font 24/Smallcaps Map View 50x35 Zoom Use 0% Tactical HUD 1 Map Filters NONE Filters NONE Steam 1 RUN: e8c1d50d-150b-4e58-8efd-aa058cf73e10